bitfinex/quotes_ETHUSD_20220119
["timestamp","ask_amount","ask_price","bid_price","bid_amount"]
[1642633177077,3.16224962,3128.4,3128.3,0.99985001]
[1642633177678,3.16224962,3128.4,3128.3,3.79298554]
[1642633177876,2.72914523,3128.4,3128.3,1.28755001]
[1642633178879,2.72914523,3128.4,3128.3,3.78457773]
[1642633179079,3.05368556,3128.4,3128.3,3.78457773]
[1642633179679,3.05368556,3128.4,3128.3,3.62467773]
[1642633180131,3.05368556,3128.4,3128.3,3.49687773]
[1642633180835,3.05368556,3128.4,3128.3,0.99985001]
[1642633182041,3.05553189,3128.4,3128.3,0.99985001]
[1642633192166,4.0600149,3128.4,3128.3,0.99985001]
[1642633194267,4.0580149,3128.4,3128.3,0.99985001]
[1642633197135,4.06109134,3128.4,3128.3,0.99985001]
[1642633200191,4.06109134,3128.4,3128.3,0.98287365]
[1642633201795,4.08135742,3128.4,3128.3,0.98287365]
[1642633202199,4.38025509,3128.4,3128.3,0.97352794]
[1642633202433,4.68025509,3128.4,3128.3,0.97352794]
[1642633203131,3.38025509,3128.4,3128.3,0.97352794]
[1642633203931,3.68025509,3128.4,3128.3,0.97352794]
[1642633204130,4.68025509,3128.4,3128.3,0.97352794]
[1642633205330,3.38025509,3128.4,3128.3,0.97352794]
[1642633205532,3.68025509,3128.4,3128.3,0.97352794]
[1642633205737,4.68025509,3128.4,3128.3,0.97352794]
[1642633205931,3.68025509,3128.4,3128.3,0.97352794]
[1642633206977,3.68309721,3128.4,3128.3,0.97352794]
[1642633207179,4.69117873,3128.4,3128.3,0.97352794]
[1642633209083,3.69117873,3128.4,3128.3,0.97352794]
[1642633209283,5.14438974,3128.4,3128.3,0.97352794]
[1642633209482,6.59760653,3128.4,3128.3,0.97352794]
[1642633209924,7.59760653,3128.4,3128.3,0.97352794]
[1642633210126,5.99760653,3128.4,3128.3,0.97352794]
[1642633210528,5.99760653,3128.4,3128.3,1.10132794]
[1642633211331,6.29760653,3128.4,3128.3,1.10132794]
[1642633211631,7.59760653,3128.4,3128.3,1.10132794]
[1642633212032,0.8,3128.3,3127.7,2.38767338]
[1642633212234,2.84672553,3128.2,3127.7,2.38767338]
[1642633212434,3.18092553,3128.1,3127.7,2.38767338]
[1642633212635,3.16699161,3128.0,3127.7,2.38767338]
[1642633212836,3.18092553,3127.9,3126.8,0.1278]
[1642633213034,3.18092553,3127.9,3126.7,2.72850242]
[1642633213035,2.84682553,3127.8,3126.7,2.72850242]
[1642633213235,1.2614643,3127.7,3126.9,0.00568423]
[1642633213444,2.84682553,3127.6,3126.9,0.00568423]
[1642633213692,3.18092553,3127.5,3126.9,0.00568423]
[1642633213876,2.84682553,3127.4,3126.6,0.0073895]
[1642633214079,0.02026608,3127.2,3126.6,0.0073895]
[1642633214278,2.84682553,3127.1,3126.6,0.0073895]
[1642633214482,4.17213654,3127.0,3126.6,0.0073895]
[1642633214682,2.71892553,3126.9,3126.6,0.0073895]
[1642633214882,3.71892553,3126.9,3126.6,0.0073895]
[1642633215083,4.17214232,3126.8,3126.6,0.0073895]
[1642633215284,1.45321679,3126.8,3126.6,0.0073895]
[1642633215489,1.45321679,3126.8,3126.7,0.1279]
[1642633215687,1.679e-05,3126.8,3126.7,1.0878]
[1642633215898,1.11521101,3127.0,3126.8,0.8]
[1642633216685,1.11521101,3127.0,3126.7,0.13472108]
[1642633216887,1.41521101,3127.0,3126.7,0.13472108]
[1642633217087,1.71521101,3127.0,3126.8,3.20625266]
[1642633218737,0.02026608,3126.9,3126.8,3.20625266]
[1642633219535,1.02026608,3126.9,3126.8,3.20625266]
[1642633219738,0.02026608,3126.9,3126.8,3.20625266]
[1642633219939,3.84738353,3126.9,3126.2,0.1279]
[1642633220242,0.02026608,3126.6,3126.3,0.00284211]
[1642633220537,1.0,3126.6,3126.3,0.00284211]
[1642633220739,1.0,3126.6,3125.9,0.00511581]
[1642633221198,2.37753,3126.7,3125.9,0.00511581]
[1642633221788,0.02026608,3126.3,3125.9,0.00511581]
[1642633221989,0.00874643,3126.6,3125.9,0.00511581]
[1642633222189,0.00240971,3126.5,3125.9,0.00511581]
[1642633223394,0.02026608,3126.2,3125.9,0.00511581]
[1642633223790,1.0997,3126.3,3125.9,0.00511581]
[1642633223994,0.3,3126.2,3125.9,0.00511581]
[1642633224927,0.02026608,3126.0,3125.4,0.00795793]
[1642633225131,1.11521101,3125.8,3125.4,0.00795793]
[1642633225330,1.41521101,3125.8,3125.4,0.00795793]
[1642633225532,2.78241101,3125.8,3125.4,0.00795793]
[1642633225736,0.1279,3125.7,3125.4,0.00795793]
[1642633225931,1.1279,3125.7,3125.4,0.00795793]
[1642633226132,2.6514,3125.7,3125.4,0.00795793]
[1642633226533,0.02026608,3125.6,3125.4,0.00795793]
[1642633226728,0.1279,3125.5,3125.4,0.00795793]
[1642633227230,0.5899,3125.6,3125.4,3.20795793]
[1642633227431,1.7,3125.5,3125.4,5.793e-05]
[1642633227633,0.85,3125.4,3124.1,0.07074898]
[1642633227831,0.80005,3125.1,3124.1,0.07074898]
[1642633228035,0.128,3125.0,3124.1,0.06550207]
[1642633228231,0.00454739,3125.0,3123.9,4.48206938]
[1642633228441,0.00397897,3124.9,3124.1,0.07074898]
[1642633228898,0.00341054,3124.8,3124.0,0.00113684]
[1642633229100,0.00341054,3124.8,3124.1,0.03909058]
[1642633229299,0.00284212,3124.7,3124.1,0.03909058]
[1642633229497,0.02026608,3124.4,3124.1,0.03909058]
[1642633229698,0.0022737,3124.6,3124.1,0.03909058]
[1642633230098,0.00170527,3124.5,3124.1,0.03909058]
[1642633230501,0.00113685,3124.4,3124.1,0.03909058]
[1642633230899,1.11521101,3124.6,3124.1,0.03909058]
[1642633230900,1.41521101,3124.6,3124.1,0.03909058]
[1642633231104,1.13547709,3124.6,3124.1,0.03909058]
[1642633231299,0.00170527,3124.5,3124.1,0.03909058]
[1642633231815,0.00113685,3124.4,3124.1,0.03909058]
[1642633232200,0.00938823,3124.3,3124.2,1.7]
[1642633232453,0.00938823,3124.3,3124.2,1.70113684]
[1642633232648,0.02965431,3124.3,3124.2,1.70113684]
[1642633233148,0.02965431,3124.3,3124.2,1.82913684]
[1642633233551,0.02965431,3124.3,3124.2,1.70113684]
[1642633235351,0.02965431,3124.3,3124.2,0.00113684]
[1642633235751,1.14232232,3124.3,3124.2,0.00113684]
[1642633236191,1.44232232,3124.3,3124.1,0.03445422]
[1642633236395,1.42205624,3124.3,3124.2,0.00113685]
[1642633236798,1.72205624,3124.3,3124.2,0.00113685]
[1642633237099,1.74061311,3124.3,3124.2,0.00113685]
[1642633238099,1.76087919,3124.3,3124.2,0.00113685]
[1642633241438,2.22287919,3124.3,3123.5,0.00511581]
[1642633241640,0.80041,3124.1,3123.5,0.00511581]
[1642633241840,0.02026608,3123.8,3123.5,0.00511581]
[1642633242248,1.11266801,3123.6,3123.5,0.00511581]
[1642633242438,2.81916801,3123.6,3123.5,0.00511581]
[1642633242838,4.08136801,3123.6,3123.5,0.00511581]
[1642633243437,4.10163409,3123.6,3123.5,0.00511581]
[1642633244080,4.10163409,3123.6,3122.9,0.00852635]
[1642633244283,1.0,3123.5,3122.9,0.00852635]
[1642633244483,1.0,3123.5,3122.8,0.00909478]
[1642633244895,0.02026608,3123.1,3122.8,0.00909478]
[1642633245085,0.2458,3123.2,3122.8,0.00909478]
[1642633245487,0.2458,3123.2,3122.1,0.14899478]
[1642633245688,0.00170527,3123.1,3122.1,0.14899478]
[1642633245994,0.00113685,3123.0,3122.2,0.00341054]
[1642633246290,0.00113685,3123.0,3122.1,0.00397896]
[1642633246992,0.01071796,3123.0,3122.1,0.00397896]
[1642633247657,1.11266801,3122.6,3122.1,0.00397896]
[1642633247854,1.11266801,3122.6,3122.2,0.1281]
[1642633248055,0.02026608,3122.4,3122.2,0.1281]
[1642633248255,0.02026608,3122.4,3122.3,0.00284211]
[1642633248453,1.11266801,3122.6,3122.3,0.13084211]
[1642633248659,1.11266801,3122.6,3122.4,0.128]
[1642633248860,1.11266801,3122.6,3122.4,0.13027369]
[1642633249057,1.11266801,3122.6,3122.5,0.00170527]
[1642633249458,1.13293409,3122.6,3122.5,0.00170527]
[1642633250662,1.73293409,3122.6,3122.5,0.00170527]
[1642633250862,2.07283409,3122.6,3122.5,0.00170527]
[1642633251303,1.47283409,3122.6,3122.1,0.00397896]
[1642633251510,1.45256801,3122.6,3122.0,0.00454738]
[1642633251706,0.02026608,3122.2,3122.0,0.00454738]
[1642633251903,1.41266801,3122.6,3122.0,0.00454738]
[1642633252205,1.44067481,3122.6,3122.0,0.00454738]
[1642633252506,1.44067481,3122.6,3122.0,0.13254738]
[1642633252710,0.3280068,3122.6,3122.0,0.13254738]
[1642633252905,1.11266801,3122.3,3122.1,0.00397896]
[1642633253306,1.41266801,3122.3,3122.1,0.00397896]
[1642633253907,1.41266801,3122.3,3121.6,0.128]
[1642633253908,1.41266801,3122.3,3121.7,0.00625265]
[1642633254107,1.41266801,3122.3,3121.8,0.128]
[1642633254407,1.41266801,3122.3,3121.9,0.00511581]
[1642633254818,0.02026608,3122.1,3121.9,0.00511581]
[1642633255050,0.02026608,3122.1,3121.0,0.18899478]
[1642633255051,1.2532,3122.1,3121.7,0.00625265]
[1642633255257,0.3,3122.0,3121.7,0.00625265]
[1642633255451,0.3,3122.0,3121.1,0.128]
[1642633255452,0.3,3122.0,3121.2,0.00909477]
[1642633255650,0.3,3122.0,3121.3,0.128]
[1642633255850,0.3,3122.0,3121.2,0.00909477]
[1642633256052,0.3,3122.0,3121.4,0.00795792]
[1642633256250,0.3,3122.0,3121.1,0.00966319]
[1642633256452,0.02026608,3121.5,3121.1,0.00966319]
[1642633256654,0.1852,3121.6,3121.1,0.00966319]
[1642633257352,0.1852,3121.6,3120.8,0.12766319]
[1642633257655,0.00227369,3121.5,3120.9,0.00113685]
[1642633257857,0.02026608,3121.2,3120.9,0.00113685]
[1642633258055,3.04501096,3121.9,3120.9,0.00113685]
[1642633258056,0.00170527,3121.4,3120.9,0.00113685]
[1642633258253,1.11266801,3121.2,3120.9,0.00113685]
[1642633258453,1.41266801,3121.2,3120.9,0.00113685]
[1642633258709,1.11266801,3121.2,3121.0,0.128]
[1642633259499,0.02026608,3121.1,3121.0,0.128]
[1642633259899,0.02026608,3121.1,3121.0,0.978]
[1642633261705,0.02026608,3121.1,3121.0,2.75899684]
[1642633261906,0.02026608,3121.1,3121.0,21.63219684]
[1642633262103,0.02026608,3121.1,3121.0,21.63299684]
[1642633262104,0.04925607,3121.1,3121.0,21.63299684]
[1642633262303,0.04925607,3121.1,3121.0,21.63219684]
[1642633262546,0.04925607,3121.1,3121.0,20.00099478]
[1642633262745,0.04925607,3121.1,3121.0,19.99699478]
[1642633262945,0.04925607,3121.1,3121.0,19.99939478]
[1642633263148,0.04925607,3121.1,3121.0,20.00099478]
[1642633263545,0.04925607,3121.1,3121.0,21.01551593]
[1642633263546,1.11266801,3121.1,3121.0,21.01551593]
[1642633263847,0.00113684,3121.3,3121.0,21.01551593]
[1642633263848,0.00113684,3121.3,3121.2,20.33111]
[1642633264043,3.945,3122.9,3121.3,1.028]
[1642633264044,2.77159048,3122.8,3121.3,1.028]
[1642633264245,2.77159048,3122.8,3121.4,18.73]
[1642633264444,3.32784314,3122.8,3121.6,0.9]
[1642633264644,0.00170527,3122.7,3121.7,0.128]
[1642633264849,0.00170527,3122.7,3121.7,0.00397896]
[1642633265147,0.00113685,3122.6,3121.7,0.00397896]
[1642633267192,0.01797497,3122.5,3121.8,0.0153835]
[1642633267592,0.01797497,3122.5,3121.9,0.00284212]
[1642633268092,0.01797497,3122.5,3121.9,0.80334212]
[1642633268493,0.01797497,3122.5,3122.0,0.00227369]
[1642633271147,0.01797497,3122.5,3121.8,0.0153835]
[1642633271148,0.01797497,3122.5,3121.9,0.00284212]
[1642633272148,0.01797497,3122.5,3122.2,0.00385404]
[1642633273698,0.72620507,3122.4,3122.2,0.00385404]
[1642633274096,1.32620507,3122.4,3122.2,0.00385404]
[1642633274290,0.72620507,3122.4,3122.2,0.00385404]
[1642633276596,1.02620507,3122.4,3122.2,0.00385404]
[1642633276798,1.32620507,3122.4,3122.2,0.00385404]
[1642633277198,0.01846422,3122.3,3122.2,0.00967299]
[1642633277758,0.01846422,3122.3,3122.2,0.91080984]
[1642633278758,0.01846422,3122.3,3122.2,5.01080984]
[1642633279963,0.74465121,3122.3,3122.2,5.01080984]
[1642633280363,1.04465121,3122.3,3122.2,5.01080984]
[1642633282205,1.04465121,3122.3,3122.2,5.01989054]
[1642633284513,1.04361344,3122.3,3122.2,5.01989054]
[1642633287052,1.04361344,3122.3,3122.2,4.11021755]
[1642633288898,1.04361344,3122.3,3122.2,3.21021755]
[1642633290100,0.31742645,3122.3,3122.2,3.21021755]
[1642633290300,0.01846422,3122.3,3122.2,3.21021755]
[1642633291303,0.74476924,3122.3,3122.2,3.21021755]
[1642633291506,1.04476924,3122.3,3122.2,3.21021755]
[1642633292304,1.04476924,3122.3,3122.2,3.21987562]
[1642633297193,1.04476924,3122.3,3122.2,3.21021755]
[1642633302062,1.04476924,3122.3,3122.2,3.21987562]
[1642633307206,1.04476924,3122.3,3122.2,3.20664083]
[1642633307744,0.31747692,3122.3,3122.2,3.20550398]
[1642633307944,0.01846422,3122.3,3122.2,3.20550398]
[1642633310350,0.74471174,3122.3,3122.2,3.20550398]
[1642633310552,1.04471174,3122.3,3122.2,3.20550398]
[1642633312019,1.04471174,3122.3,3122.2,3.21810931]
[1642633316658,3.76827462,3122.3,3122.2,3.21810931]
[1642633316857,1.04471174,3122.3,3122.2,3.21810931]
[1642633317059,3.76828786,3122.3,3122.2,3.21810931]
[1642633317362,3.76828786,3122.3,3122.2,3.21050749]
[1642633317363,1.04471174,3122.3,3122.2,3.21050749]
[1642633319200,3.76830431,3122.3,3122.2,3.21050749]
[1642633319603,4.76830431,3122.3,3122.2,3.21050749]
[1642633320007,4.76832586,3122.3,3122.2,3.21050749]
[1642633322008,4.76832586,3122.3,3122.2,3.2145427]
[1642633322471,2.04471174,3122.3,3122.2,3.2145427]
[1642633322659,1.04471174,3122.3,3122.2,3.2145427]
[1642633322864,2.04471174,3122.3,3122.2,3.2145427]
[1642633323060,1.04471174,3122.3,3122.2,3.2145427]
[1642633323260,2.04471174,3122.3,3122.2,3.2145427]
[1642633323661,1.04471174,3122.3,3122.2,3.2145427]
[1642633326307,0.74471174,3122.3,3122.2,5.79215284]
[1642633329107,0.74471174,3122.3,3122.2,24.52215284]
[1642633329968,0.7438387,3122.3,3122.2,5.79215284]
[1642633330765,0.7438387,3122.3,3122.2,3.2145427]
[1642633330957,0.7438387,3122.3,3122.2,5.64644161]
[1642633332162,0.7438387,3122.3,3122.2,5.65249564]
[1642633333568,1.45264444,3123.1,3122.2,5.65249564]
[1642633333810,2.72316386,3123.0,3122.5,0.80032]
[1642633334011,0.00341054,3123.0,3122.5,20.17218938]
[1642633334209,0.00284212,3122.9,3122.5,20.17218938]
[1642633334411,0.00284212,3122.9,3122.7,1.9512]
[1642633334609,2.72281698,3123.5,3122.7,20.6812]
[1642633334610,0.00227369,3122.8,3122.7,20.6812]
[1642633334808,0.00227369,3122.8,3122.7,22.28165]
[1642633335610,0.00227369,3122.8,3122.7,22.43064478]
[1642633335810,2.72281698,3123.6,3122.8,1.028]
[1642633336017,1.2494,3123.9,3122.8,1.028]
[1642633336018,2.72281698,3123.5,3122.9,23.2027355]
[1642633336211,0.00341055,3123.4,3123.0,0.128]
[1642633336613,0.00284212,3123.3,3123.0,0.128]
[1642633337014,0.0022737,3123.2,3123.0,0.92814]
[1642633337219,0.0022737,3123.2,3123.1,3.69317434]
[1642633337472,2.72252725,3123.5,3123.2,1.6003]
[1642633337658,0.6,3124.1,3123.3,2.7247802]
[1642633337859,0.00397897,3123.5,3123.3,2.7247802]
[1642633338259,0.00341055,3123.4,3123.3,2.7247802]
[1642633339062,0.00341055,3123.4,3123.3,3.6247802]
[1642633339459,0.00341055,3123.4,3123.3,5.2251002]
[1642633339665,0.00341055,3123.4,3123.3,5.3531002]
[1642633339865,0.00341055,3123.4,3123.3,5.4747002]
[1642633340163,0.00341055,3123.4,3123.3,5.4739002]
[1642633340364,0.00341055,3123.4,3123.3,5.4763002]
[1642633340563,0.00341055,3123.4,3123.3,5.4747002]
[1642633340765,0.00341055,3123.4,3123.3,5.62529498]
[1642633340964,0.00341055,3123.4,3123.3,6.52609498]
[1642633341216,2.72216401,3124.5,3123.9,0.79995]
[1642633341414,2.72216401,3124.5,3124.0,2.96732204]
[1642633341614,2.72841666,3124.5,3124.0,2.96732204]
[1642633341817,2.72200785,3124.4,3124.0,2.96732204]
[1642633342015,0.30625265,3124.5,3124.0,2.96732204]
[1642633342216,0.00511581,3124.3,3124.0,2.96732204]
[1642633342516,0.00454738,3124.2,3124.1,0.79996]
[1642633342717,0.00454738,3124.2,3124.1,3.36561609]
[1642633344024,0.00454738,3124.2,3124.1,0.79996]
[1642633344517,0.00454738,3124.2,3123.9,2.51641567]
[1642633344974,0.00397896,3124.1,3123.9,2.51641567]
[1642633345365,0.00341054,3124.0,3123.9,2.51641567]
[1642633345766,0.00682108,3124.0,3123.9,2.51641567]
[1642633345970,0.00682108,3124.0,3123.9,5.36761567]
[1642633346373,0.00682108,3124.0,3123.9,1.9512]
[1642633347171,0.00682108,3124.0,3123.9,1.95876578]
[1642633347772,2.04726158,3124.7,3124.0,0.9]
[1642633347970,2.72214376,3124.6,3124.0,0.9]
[1642633348172,3.02214376,3124.6,3124.0,0.9]
[1642633348372,2.72214376,3124.5,3124.0,0.9]
[1642633348807,2.72214376,3124.5,3124.1,1.9512]
[1642633349207,3.02214376,3124.5,3124.2,0.0022737]
[1642633349408,2.72214376,3124.4,3124.2,0.0022737]
[1642633349812,3.02214376,3124.4,3124.2,0.0022737]
[1642633350013,0.3,3124.4,3124.2,0.0022737]
[1642633350313,0.3,3124.6,3124.2,0.0022737]
[1642633350512,2.72215077,3124.5,3124.2,0.0022737]
[1642633350712,3.52231047,3124.5,3124.2,0.0022737]
[1642633350915,3.02215077,3124.4,3124.2,0.0022737]
[1642633351112,0.3,3124.4,3124.2,0.0022737]
[1642633351315,0.6,3124.4,3124.2,0.0022737]
[1642633351519,2.72233183,3124.3,3124.2,0.0022737]
[1642633351912,3.02233183,3124.3,3124.2,0.0022737]
[1642633352316,2.97233183,3124.3,3124.2,0.0022737]
[1642633352967,2.72224926,3124.3,3124.2,0.0022737]
[1642633353364,2.72228594,3124.3,3124.2,0.0022737]
[1642633354172,3.02228594,3124.3,3124.2,0.0022737]
[1642633354371,3.63285283,3124.3,3124.2,0.0022737]
[1642633355668,0.91056689,3124.3,3124.2,0.0022737]
[1642633355870,1.91056689,3124.3,3124.2,0.0022737]
[1642633356070,0.91056689,3124.3,3124.2,0.0022737]
[1642633356516,3.6328285,3124.3,3124.2,0.0022737]
[1642633356916,0.91056689,3124.3,3124.2,0.0022737]
[1642633357116,0.92548892,3124.3,3124.2,0.0022737]
[1642633359970,3.64772757,3124.3,3124.2,0.0022737]
[1642633360356,4.64772757,3124.3,3124.2,0.0022737]
[1642633360959,1.92548892,3124.3,3124.2,0.0022737]
[1642633361158,0.92548892,3124.3,3124.2,0.0022737]
[1642633361362,3.64774657,3124.3,3124.2,0.0022737]
[1642633361663,4.64774657,3124.3,3124.2,0.0022737]
[1642633361864,4.64775839,3124.3,3124.2,0.0022737]
[1642633362061,1.92548892,3124.3,3124.2,0.0022737]
[1642633362262,4.64772749,3124.3,3124.2,0.0022737]
[1642633362462,3.64772749,3124.3,3124.2,0.0022737]
[1642633362663,4.59772749,3124.3,3124.2,0.0022737]
[1642633363264,1.87548892,3124.3,3124.2,0.0022737]
[1642633363726,0.87548892,3124.3,3124.2,0.0022737]
[1642633363927,3.5976786,3124.3,3124.2,0.0022737]
[1642633364127,4.5976786,3124.3,3124.2,0.0022737]
[1642633364530,1.87548892,3124.3,3124.2,0.0022737]
[1642633364731,4.59767609,3124.3,3124.2,0.0022737]
[1642633364929,3.59767609,3124.3,3124.2,0.0022737]
[1642633365129,4.59767609,3124.3,3124.2,0.0022737]
[1642633365729,1.87548892,3124.3,3124.2,0.0022737]
[1642633366130,0.87548892,3124.3,3124.2,0.0022737]
[1642633366533,3.59764571,3124.3,3124.2,0.0022737]
[1642633366932,4.59764571,3124.3,3124.2,0.0022737]
[1642633367761,4.59760473,3124.3,3124.2,0.0022737]
[1642633367968,0.87548892,3124.3,3124.2,0.0022737]
[1642633368368,3.59759341,3124.3,3124.2,0.0022737]
[1642633368571,3.59758683,3124.3,3124.2,0.0022737]
[1642633369970,0.87548892,3124.3,3124.2,0.0022737]
[1642633370168,3.59750865,3124.3,3124.2,0.0022737]
[1642633370368,3.34750865,3124.3,3124.2,0.0022737]
[1642633370568,0.62548892,3124.3,3124.2,0.0022737]
[1642633370768,0.01492203,3124.3,3124.2,0.0022737]
[1642633370968,2.73695009,3124.3,3124.2,0.0022737]
[1642633371821,2.73328414,3124.3,3124.2,0.0022737]
[1642633372026,0.62201626,3124.3,3124.2,0.0022737]
[1642633372226,3.34723006,3124.3,3124.2,0.011923]
[1642633374830,3.34723006,3124.3,3124.2,0.01095951]
[1642633377271,3.34621663,3124.3,3124.2,0.01014607]
[1642633379219,3.34621663,3124.3,3124.2,0.00787237]
[1642633382225,3.34621663,3124.3,3124.2,0.00916755]
[1642633386073,3.34621663,3124.3,3124.2,0.90916755]
[1642633386323,3.34621663,3124.3,3124.2,3.93173387]
[1642633386523,3.34621663,3124.3,3124.2,1.80916755]
[1642633386727,1.17524786,3125.0,3124.4,0.79981]
[1642633386925,1.17524786,3125.0,3124.6,20.32943]
[1642633387126,0.00170527,3124.9,3124.7,0.92771]
[1642633387428,0.00113684,3124.8,3124.7,22.40767664]
[1642633387624,0.00113684,3124.8,3124.7,19.65771]
[1642633387825,0.00113684,3124.8,3124.7,19.78571]
[1642633388027,0.00113684,3124.8,3124.7,20.58623]
[1642633388228,0.00113684,3124.8,3124.7,20.58543]
[1642633388425,0.00113684,3124.8,3124.7,20.73442478]
[1642633388626,0.00113684,3124.8,3124.7,20.73522478]
[1642633388825,0.00113684,3124.8,3124.7,20.73682478]
[1642633389025,0.00113684,3124.8,3124.7,20.58783]
[1642633389226,0.00113684,3124.8,3124.7,20.73602478]
[1642633389425,0.00113684,3124.8,3124.7,21.74162478]
[1642633389628,1.62752465,3125.9,3125.1,0.79953]
[1642633389827,1.62752465,3125.9,3125.3,0.79952]
[1642633390076,1.62752465,3125.9,3125.4,0.64186938]
[1642633390077,0.00568424,3125.8,3125.4,0.64186938]
[1642633390275,0.00568424,3125.8,3125.4,19.49506938]
[1642633390479,0.00511581,3125.7,3125.4,19.49586938]
[1642633390675,0.00511581,3125.7,3125.5,0.2479]
[1642633390880,1.62752465,3126.4,3125.6,1.69951]
[1642633391081,1.92752465,3126.4,3125.6,1.69951]
[1642633391279,0.00625266,3125.9,3125.6,1.69951]
[1642633391679,3.38129432,3126.5,3125.7,2.72380087]
[1642633391680,0.00568424,3125.8,3125.7,2.72380087]
[1642633392080,0.00568424,3125.8,3125.7,4.67500087]
[1642633392479,0.00568424,3125.8,3125.7,2.72380087]
[1642633394720,0.00568424,3125.8,3125.7,21.45380087]
[1642633395519,0.00568424,3125.8,3125.7,24.65380087]
[1642633401724,0.00568424,3125.8,3125.7,24.78170087]
[1642633401925,0.00568424,3125.8,3125.7,25.42357025]
[1642633405977,0.00568424,3125.8,3125.7,25.29567025]
[1642633406582,0.00568424,3125.8,3125.7,25.42357025]
[1642633409821,0.00481552,3125.8,3125.7,25.29567025]
[1642633412684,0.00481552,3125.8,3125.7,25.41567025]
[1642633412884,0.00481552,3125.8,3125.7,25.29567025]
[1642633415589,0.00481552,3125.8,3125.7,6.56567025]
[1642633416934,0.00481552,3125.8,3125.7,5.92380087]
[1642633417329,0.00481552,3125.8,3125.7,3.2]
[1642633417530,0.00481552,3125.8,3125.7,5.72784362]
[1642633420673,0.00481552,3125.8,3125.7,3.2]
[1642633421074,0.65599933,3125.8,3125.7,3.2]
[1642633421278,0.65599933,3125.8,3125.7,5.71062844]
[1642633422681,0.3,3126.1,3125.8,0.9]
[1642633422881,0.3,3126.1,3125.9,0.79954]
[1642633423084,0.00113685,3126.0,3125.9,1.69954]
[1642633423283,0.00113685,3126.0,3125.9,4.10946576]
[1642633423485,0.30227369,3126.2,3125.9,4.10946576]
[1642633423729,0.00227369,3126.2,3125.9,4.10946576]
[1642633423929,0.00170527,3126.1,3125.9,4.10946576]
[1642633424332,0.00227369,3126.2,3125.9,0.9]
[1642633424735,0.00170527,3126.1,3125.9,0.9]
[1642633424931,0.00170527,3126.1,3126.0,2.41906607]
[1642633425131,0.00227369,3126.2,3126.0,2.41906607]
[1642633425331,0.00170527,3126.1,3126.0,2.41906607]
[1642633427143,0.00170527,3126.1,3126.0,2.42874262]
[1642633427681,0.00170527,3126.1,3126.0,0.00967655]
[1642633427882,0.00170527,3126.1,3126.0,3.60220213]
[1642633428084,0.28966741,3126.5,3126.1,0.9]
[1642633428282,0.28966741,3126.5,3126.2,2.59934954]
[1642633428481,0.00170527,3126.4,3126.2,2.59934954]
[1642633428884,0.00113685,3126.3,3126.0,0.00967655]
[1642633429284,0.00227369,3126.5,3126.0,0.00967655]
[1642633430089,0.00227369,3126.5,3126.1,0.79949]
[1642633430286,0.00227369,3126.5,3126.2,2.50450612]
[1642633430483,3.02267627,3126.5,3126.2,2.50450612]
[1642633430684,0.30227369,3126.5,3126.2,2.50450612]
[1642633431334,2.72042222,3126.4,3126.2,2.50450612]
[1642633431534,2.72042222,3126.4,3126.1,0.79949]
[1642633431535,0.30227369,3126.5,3126.1,0.79949]
[1642633431735,0.00113685,3126.3,3126.1,0.79949]
[1642633432535,0.30113685,3126.3,3126.2,2.40975741]
[1642633432740,0.60113685,3126.3,3126.1,0.79949]
[1642633432935,0.30113685,3126.3,3126.1,0.79949]
[1642633433135,0.30113685,3126.3,3125.8,2.81208182]
[1642633433335,0.00113685,3126.3,3125.9,0.79955]
[1642633433535,0.00113685,3126.3,3126.0,2.5098054]
[1642633434734,2.72163654,3126.3,3126.0,3.15167478]
[1642633434994,0.00113685,3126.3,3126.0,3.15167478]
[1642633435580,0.30113685,3126.3,3126.0,3.15167478]
[1642633435780,0.00113685,3126.3,3126.0,0.64186938]
[1642633435980,0.30113685,3126.3,3126.0,3.07146196]
[1642633436786,0.30113685,3126.3,3126.0,4.67034196]
[1642633436986,0.00113685,3126.3,3126.0,23.40034196]
[1642633437187,0.00113685,3126.3,3126.1,0.00966018]
[1642633437586,0.00113685,3126.3,3126.2,1.82733]
[1642633437787,0.00113685,3126.3,3126.2,4.44311313]
[1642633439433,0.00113685,3126.3,3126.2,3.49311313]
[1642633440232,0.00113685,3126.3,3126.2,3.36521313]
[1642633443684,0.72650734,3126.3,3126.2,3.36521313]
[1642633443885,0.72650734,3126.3,3126.2,22.09521313]
[1642633444884,0.72650734,3126.3,3126.2,3.36521313]
[1642633447236,0.72650734,3126.3,3126.2,22.09521313]
[1642633449240,0.72650734,3126.3,3126.2,3.36521313]
[1642633449440,0.72650734,3126.3,3126.2,2.61578313]
[1642633450488,0.72650734,3126.3,3126.2,0.79943]
[1642633450886,0.72650734,3126.3,3126.2,3.29076885]
[1642633452896,0.72650734,3126.3,3126.1,0.00966018]
[1642633453734,0.72537049,3126.2,3126.1,0.00966018]
[1642633457037,0.72537049,3126.2,3126.1,0.00850531]
[1642633461443,3.44586561,3126.2,3126.1,0.00850531]
[1642633462240,3.44386561,3126.2,3126.1,0.00850531]
[1642633465078,0.00301269,3126.0,3125.7,3.2]
[1642633465480,0.00301269,3126.0,3125.8,0.00170527]
[1642633467081,0.01406694,3125.9,3125.8,0.00170527]
[1642633467682,0.01406694,3125.9,3125.8,2.41110124]
[1642633468946,0.01406694,3125.9,3125.8,2.40682601]
[1642633473983,1.3996337,3126.2,3125.8,2.40682601]
[1642633473984,1.31370064,3126.2,3125.9,0.9]
[1642633475687,0.3,3126.1,3125.9,0.9]
[1642633476946,0.3,3126.3,3125.9,0.9]
[1642633477151,0.6,3126.3,3125.9,0.9]
[1642633477347,0.00170527,3126.4,3125.9,0.9]
[1642633477550,2.72194654,3126.4,3125.9,0.9]
[1642633477747,0.00113685,3126.3,3125.9,0.9]
[1642633477948,0.00113685,3126.3,3126.0,0.1279]
[1642633479753,2.72135672,3126.3,3126.0,0.1279]
[1642633480288,0.00113685,3126.3,3126.0,0.1279]
[1642633480488,0.00113685,3126.3,3125.9,1.0279]
[1642633480689,2.72135854,3126.3,3125.9,1.0279]
[1642633480888,0.00113685,3126.3,3125.9,1.0279]
[1642633481295,2.72139356,3126.3,3125.9,1.0279]
[1642633482298,3.02139356,3126.3,3125.9,1.0279]
[1642633482495,3.02139356,3126.3,3125.9,0.9]
[1642633482695,0.72547022,3126.2,3125.9,0.9]
[1642633482893,3.44572693,3126.2,3125.9,0.9]
[1642633483094,1.02547022,3126.2,3125.9,0.9]
[1642633483936,0.72547022,3126.1,3125.9,0.9]
[1642633486542,1.02547022,3126.1,3125.9,0.9]
[1642633487785,0.72547022,3126.0,3125.9,0.9]
[1642633487988,1.32547022,3126.0,3125.9,0.9]
[1642633488188,1.32547022,3126.0,3125.9,0.90113685]
[1642633492168,0.72547022,3126.0,3125.9,0.90113685]
[1642633492770,0.72547022,3126.1,3125.9,0.90113685]